[Event "EICC 2021"]
[Site "Reykjavik"]
[Date "2021.09.05"]
[Round "11.14"]
[White "Quparadze, Giga"]
[Black "Lagarde, Maxime"]
[Result "1/2-1/2"]
[ECO "B31"]
[WhiteElo "2476"]
[BlackElo "2631"]
[Annotator "RC"]
[PlyCount "132"]
[EventDate "2021.08.26"]
[EventType "swiss"]
[EventCountry "ISL"]
[Tiebreak "Cut1 Buchholz"]
[SourceTitle "playchess.com"]
[Source "ChessBase"]
[SourceQuality "1"]
[TimeControl "40/5400+30:1800+30"]

1. e4 {[%emt 0:00:02]} c5 {[%emt 0:00:03]} 2. Nf3 {[%emt 0:00:04]} Nc6 {
[%emt 0:00:02]} 3. Bb5 {[%emt 0:00:06]} g6 {[%emt 0:00:03]} 4. O-O {[%emt 0:00:
06]} Bg7 {[%emt 0:00:07]} 5. c3 {[%emt 0:00:03]} Nf6 {[%emt 0:00:17]} 6. Re1 {
[%emt 0:00:05]} O-O {[%emt 0:00:04]} 7. d4 {[%emt 0:00:04]} a6 {[%emt 0:00:05]}
8. Bxc6 {[%emt 0:00:08]} dxc6 {[%emt 0:00:04]} 9. h3 {[%emt 0:00:05]} Nd7 {
[%emt 0:12:55]} 10. Be3 {[%emt 0:00:24]} cxd4 {[%emt 0:12:32]} 11. cxd4 {
[%emt 0:00:11]} h6 {[%emt 0:00:07]} 12. Nc3 {[%emt 0:00:13]} b5 {[%emt 0:02:23]
} 13. Rc1 {[%emt 0:00:19]} Bb7 {[%emt 0:00:56]} 14. e5 {[%emt 0:01:34]} c5 {
[%emt 0:13:37]} 15. dxc5 {[%emt 0:00:31]} Bxf3 {[%emt 0:08:58]} 16. Qxf3 {
[%emt 0:00:08]} Nxe5 {[%emt 0:00:02]} 17. Qe2 {[%emt 0:00:51]} Qd3 {[%emt 0:03:
44]} 18. Rcd1 {[%emt 0:00:05]} Qxe2 {[%emt 0:00:19]} 19. Rxe2 {[%emt 0:00:03]}
Rfd8 {[%emt 0:01:33]} 20. Rxd8+ {[%emt 0:00:09]} Rxd8 {[%emt 0:00:06]} 21. Bxh6
{[%emt 0:00:06]} Bxh6 {[%emt 0:02:00]} 22. Rxe5 {[%emt 0:02:31]} e6 {[%emt 0:
00:02]} 23. Re1 {[%emt 0:00:35]} Rc8 {[%emt 0:13:18]} 24. Ne4 {[%emt 0:00:13]}
f5 {[%emt 0:00:19]} 25. Ng3 {[%emt 0:04:01]} Kf7 {[%emt 0:00:53]} 26. b4 {
[%emt 0:00:04]} Rd8 {[%emt 0:01:32]} 27. Nf1 {[%emt 0:00:03]} Rd4 {[%emt 0:02:
19]} 28. Rb1 {[%emt 0:00:05]} Ke7 {[%emt 0:04:01]} 29. Rb3 {[%emt 0:00:06]} Bc1
{[%emt 0:04:04]} 30. g3 {[%emt 0:01:16]} e5 {[%emt 0:02:23]} 31. Ne3 {[%emt 0:
03:02]} e4 {[%emt 0:02:22]} 32. h4 {[%emt 0:00:38]} Kd7 {[%emt 0:07:41]} 33.
Kg2 {[%emt 0:04:00]} Kc6 {[%emt 0:04:47]} 34. h5 {[%emt 0:06:12]} Bxe3 {
[%emt 0:00:09]} 35. fxe3 {[%emt 0:00:03]} Rd2+ {[%emt 0:00:04]} 36. Kh3 {
[%emt 0:00:05]} gxh5 {[%emt 0:00:24]} 37. Ra3 {[%emt 0:00:03]} Kb7 {[%emt 0:00:
52]} 38. Kh4 {[%emt 0:00:05]} Rd3 {[%emt 0:01:59]} 39. Rb3 {[%emt 0:00:12]} Rd2
{[%emt 0:00:37]} 40. Kxh5 {[%emt 0:00:06]} Rxa2 {[%emt 0:00:25]} 41. Kg5 {
[%emt 0:30:07]} Rd2 {[%emt 0:03:27]} 42. Kxf5 {[%emt 0:00:00]} Rd3 {[%emt 0:00:
03]} 43. Rb1 {[%emt 0:00:00]} Rxe3 {[%emt 0:00:03]} 44. g4 {[%emt 0:00:00]} Re2
{[%emt 0:02:25]} 45. Rg1 {[%emt 0:00:00]} e3 {[%emt 0:01:56]} 46. Ke4 {[%emt 0:
00:00]} Rb2 {[%emt 0:05:18]} 47. g5 {[%emt 0:00:00]} e2 {[%emt 0:05:46]} 48. g6
{[%emt 0:00:00]} Rxb4+ {[%emt 0:00:43]} 49. Kf3 {[%emt 0:00:00]} Rd4 {[%emt 0:
01:35]} 50. Kxe2 {[%emt 0:00:00]} Rd8 {[%emt 0:00:22]} 51. g7 {[%emt 0:00:00]}
Rg8 {[%emt 0:00:03]} 52. Kd3 {[%emt 0:00:00]} Kc6 {[%emt 0:00:17]} 53. Kd4 {
[%emt 0:00:00]} Rd8+ {[%emt 0:00:22]} 54. Kc3 {[%emt 0:00:00]} Rg8 {[%emt 0:00:
02]} 55. Rg5 {[%emt 0:00:00]} a5 {[%emt 0:00:13]} 56. Kb3 {[%emt 0:00:00]} Kb7
{[%emt 0:01:12]} 57. Rg6 {[%emt 0:00:00]} Ka7 {[%emt 0:00:06]} 58. Kc3 {
[%emt 0:00:00]} Kb7 {[%emt 0:00:06]} 59. Kd4 {[%emt 0:00:00]} a4 {[%emt 0:00:
50]} 60. Kc3 {[%emt 0:00:00]} a3 {[%emt 0:00:04]} 61. Kb3 {[%emt 0:00:00]} b4 {
[%emt 0:00:03]} 62. Rg2 {[%emt 0:00:00]} Kc6 {[%emt 0:02:12]} 63. Kxb4 {
[%emt 0:00:00]} a2 {[%emt 0:00:03]} 64. Rg6+ {[%emt 0:00:00]} Kb7 {[%emt 0:00:
53]} 65. Rg1 {[%emt 0:00:00]} Kc6 {[%emt 0:00:19]} 66. Rg6+ {[%emt 0:00:00]}
Kb7 {[%emt 0:00:15]} 1/2-1/2

[Event "EICC 2021"]
[Site "Reykjavik"]
[Date "2021.09.05"]
[Round "11.15"]
[White "Paichadze, Luka"]
[Black "Hovhannisyan, Robert"]
[Result "1-0"]
[ECO "C45"]
[WhiteElo "2564"]
[BlackElo "2626"]
[Annotator "ChessBase"]
[PlyCount "129"]
[EventDate "2021.08.26"]
[EventType "swiss"]
[EventCountry "ISL"]
[Tiebreak "Cut1 Buchholz"]
[SourceTitle "playchess.com"]
[Source "ChessBase"]
[SourceQuality "1"]
[TimeControl "40/5400+30:1800+30"]

1. e4 {[%emt 0:00:05]} e5 {[%emt 0:00:07]} 2. Nf3 {[%emt 0:00:15]} Nc6 {
[%emt 0:00:07]} 3. d4 {[%emt 0:00:05]} exd4 {[%emt 0:00:06]} 4. Nxd4 {[%emt 0:
00:04]} Bc5 {[%emt 0:00:35]} 5. Nb3 {[%emt 0:00:13]} Bb6 {[%emt 0:00:10]} 6.
Qe2 {[%emt 0:00:18]} a5 {[%emt 0:02:52]} 7. a4 {[%emt 0:00:21]} d6 {[%emt 0:02:
33]} 8. Be3 {[%emt 0:04:01]} Bxe3 {[%emt 0:02:19]} 9. Qxe3 {[%emt 0:00:05]} Nb4
{[%emt 0:03:58]} 10. Qd2 {[%emt 0:04:24]} Nf6 {[%emt 0:01:40]} 11. Nxa5 {
[%emt 0:07:33]} Nxc2+ {[%emt 0:00:50]} 12. Qxc2 {[%emt 0:00:05]} Rxa5 {[%emt 0:
00:05]} 13. Bb5+ {[%emt 0:04:29]} c6 {[%emt 0:01:54]} 14. b4 {[%emt 0:00:51]}
Ra8 {[%emt 0:00:46]} 15. Bd3 {[%emt 0:00:11]} O-O {[%emt 0:10:13]} 16. O-O {
[%emt 0:02:40]} Ng4 {[%emt 0:00:40]} 17. Nd2 {[%emt 0:02:38]} Qh4 {[%emt 0:03:
33]} 18. Nf3 {[%emt 0:03:23]} Qh5 {[%emt 0:00:37]} 19. a5 {[%emt 0:04:04]} Be6
{[%emt 0:03:26]} 20. a6 {[%emt 0:05:58]} bxa6 {[%emt 0:05:00]} 21. Qxc6 {
[%emt 0:03:35]} d5 {[%emt 0:13:39]} 22. Rxa6 {[%emt 0:14:01]} Rac8 {[%emt 0:03:
20]} 23. Qb5 {[%emt 0:01:04]} Rb8 {[%emt 0:08:45]} 24. Rb6 {[%emt 0:03:17]}
Rxb6 {[%emt 0:00:33]} 25. Qxb6 {[%emt 0:00:05]} dxe4 {[%emt 0:00:41]} 26. Bxe4
{[%emt 0:00:05]} g6 {[%emt 0:06:02]} 27. b5 {[%emt 0:05:04]} Ne5 {[%emt 0:05:
28]} 28. Rc1 {[%emt 0:12:18]} Nc4 {[%emt 0:07:32]} 29. Qa6 {[%emt 0:02:50]} Rb8
{[%emt 0:04:10]} 30. Bc6 {[%emt 0:01:29]} Qc5 {[%emt 0:01:12]} 31. h3 {[%emt 0:
01:11]} Rd8 {[%emt 0:01:09]} 32. Qa1 {[%emt 0:00:53]} h6 {[%emt 0:03:59]} 33.
Qf6 {[%emt 0:01:35]} Rd6 {[%emt 0:01:00]} 34. Ra1 {[%emt 0:01:28]} Nb6 {
[%emt 0:00:22]} 35. Qf4 {[%emt 0:03:29]} g5 {[%emt 0:01:40]} 36. Qe3 {[%emt 0:
00:20]} Qxe3 {[%emt 0:01:09]} 37. fxe3 {[%emt 0:00:03]} Nc4 {[%emt 0:01:42]}
38. Kf2 {[%emt 0:00:27]} Rd3 {[%emt 0:01:01]} 39. Nd4 {[%emt 0:08:42]} Rd2+ {
[%emt 0:00:39]} 40. Kf3 {[%emt 0:00:30]} Rb2 {[%emt 0:04:14]} 41. Ke4 {[%emt 0:
34:56]} Bc8 {[%emt 0:12:36]} 42. Kd5 {[%emt 0:00:00]} Nxe3+ {[%emt 0:01:20]}
43. Kc5 {[%emt 0:00:00]} Kg7 {[%emt 0:09:18]} 44. Ra8 {[%emt 0:00:00]} Be6 {
[%emt 0:00:18]} 45. b6 {[%emt 0:00:00]} Bd5 {[%emt 0:00:16]} 46. Bxd5 {[%emt 0:
00:00]} Nxd5 {[%emt 0:00:06]} 47. Kxd5 {[%emt 0:00:00]} Rxb6 {[%emt 0:00:05]}
48. Ke5 {[%emt 0:00:00]} h5 {[%emt 0:01:37]} 49. Nf5+ {[%emt 0:00:00]} Kh7 {
[%emt 0:00:07]} 50. Rf8 {[%emt 0:00:00]} Re6+ {[%emt 0:00:48]} 51. Kd5 {
[%emt 0:00:00]} Kg6 {[%emt 0:02:17]} 52. g4 {[%emt 0:00:00]} hxg4 {[%emt 0:01:
15]} 53. hxg4 {[%emt 0:00:00]} Ra6 {[%emt 0:00:43]} 54. Rh8 {[%emt 0:00:00]}
Ra5+ {[%emt 0:00:11]} 55. Kd6 {[%emt 0:00:00]} Ra6+ {[%emt 0:01:31]} 56. Kc7 {
[%emt 0:00:00]} f6 {[%emt 0:00:24]} 57. Rh6+ {[%emt 0:00:00]} Kf7 {[%emt 0:00:
02]} 58. Rh7+ {[%emt 0:00:00]} Kf8 {[%emt 0:03:10]} 59. Rd7 {[%emt 0:00:16]}
Ra4 {[%emt 0:00:00]} 60. Kd6 {[%emt 0:02:15]} Ke8 {[%emt 0:03:27]} 61. Rb7 {
[%emt 0:01:00]} Ra6+ {[%emt 0:01:05]} 62. Kd5 {[%emt 0:00:12]} Ra5+ {[%emt 0:
00:31]} 63. Ke6 {[%emt 0:00:20]} Ra6+ {[%emt 0:00:03]} 64. Nd6+ {[%emt 0:00:13]
} Kf8 {[%emt 0:00:04]} 65. Rd7 {[%emt 0:00:38]} 1-0

[Event "EICC 2021"]
[Site "Reykjavik"]
[Date "2021.09.05"]
[Round "11.16"]
[White "Fridman, Daniel"]
[Black "Steingrimsson, Hedinn"]
[Result "1-0"]
[ECO "A33"]
[WhiteElo "2621"]
[BlackElo "2519"]
[Annotator "ChessBase"]
[PlyCount "185"]
[EventDate "2021.08.26"]
[EventType "swiss"]
[EventCountry "ISL"]
[Tiebreak "Cut1 Buchholz"]
[SourceTitle "playchess.com"]
[Source "ChessBase"]
[SourceQuality "1"]
[TimeControl "40/5400+30:1800+30"]

1. c4 {[%emt 0:03:14]} c5 {[%emt 0:06:31]} 2. Nf3 {[%emt 0:00:10]} Nc6 {
[%emt 0:00:33]} 3. d4 {[%emt 0:01:22]} cxd4 {[%emt 0:00:37]} 4. Nxd4 {[%emt 0:
00:05]} Nf6 {[%emt 0:02:21]} 5. Nc3 {[%emt 0:00:13]} e6 {[%emt 0:00:07]} 6. g3
{[%emt 0:00:17]} Qb6 {[%emt 0:01:24]} 7. Ndb5 {[%emt 0:02:29]} Ne5 {[%emt 0:06:
45]} 8. Bf4 {[%emt 0:00:45]} Nfg4 {[%emt 0:02:37]} 9. e3 {[%emt 0:00:08]} a6 {
[%emt 0:03:01]} 10. h3 {[%emt 0:00:07]} axb5 {[%emt 0:00:25]} 11. hxg4 {
[%emt 0:00:06]} Nxc4 {[%emt 0:00:05]} 12. Qb3 {[%emt 0:02:02]} d5 {[%emt 0:12:
35]} 13. Bxc4 {[%emt 0:00:07]} dxc4 {[%emt 0:00:03]} 14. Qxb5+ {[%emt 0:00:08]}
Qxb5 {[%emt 0:13:57]} 15. Nxb5 {[%emt 0:00:07]} Ra5 {[%emt 0:00:01]} 16. Nd6+ {
[%emt 0:23:27]} Bxd6 {[%emt 0:07:20]} 17. Bxd6 {[%emt 0:00:08]} f6 {[%emt 0:00:
48]} 18. e4 {[%emt 0:03:19]} e5 {[%emt 0:02:11]} 19. f3 {[%emt 0:00:26]} Kf7 {
[%emt 0:01:37]} 20. Bb4 {[%emt 0:04:10]} Ra6 {[%emt 0:10:41]} 21. a3 {[%emt 0:
00:34]} h6 {[%emt 0:01:51]} 22. Rd1 {[%emt 0:01:20]} Be6 {[%emt 0:01:26]} 23.
Rh2 {[%emt 0:00:14]} Rc6 {[%emt 0:05:23]} 24. Bc3 {[%emt 0:00:26]} Rhc8 {
[%emt 0:05:38]} 25. Rhd2 {[%emt 0:01:19]} Ke8 {[%emt 0:03:38]} 26. Ke2 {
[%emt 0:04:36]} R6c7 {[%emt 0:00:04]} 27. Ba5 {[%emt 0:01:18]} Rd7 {[%emt 0:00:
37]} 28. Rd6 {[%emt 0:00:20]} Rxd6 {[%emt 0:00:32]} 29. Rxd6 {[%emt 0:00:03]}
Bd7 {[%emt 0:00:02]} 30. Ke3 {[%emt 0:03:21]} Rc6 {[%emt 0:02:17]} 31. Rd5 {
[%emt 0:01:29]} b6 {[%emt 0:00:01]} 32. Bb4 {[%emt 0:00:30]} Re6 {[%emt 0:00:
20]} 33. Rd2 {[%emt 0:01:32]} Bc6 {[%emt 0:00:51]} 34. Rc2 {[%emt 0:00:49]} b5
{[%emt 0:01:01]} 35. Kd2 {[%emt 0:01:01]} Kf7 {[%emt 0:03:26]} 36. Kc3 {
[%emt 0:02:43]} Re8 {[%emt 0:01:36]} 37. Rd2 {[%emt 0:00:49]} Re6 {[%emt 0:02:
33]} 38. Bc5 {[%emt 0:00:37]} Re8 {[%emt 0:00:24]} 39. Kb4 {[%emt 0:01:20]} Ra8
{[%emt 0:01:24]} 40. Rd6 {[%emt 0:00:28]} Ra4+ {[%emt 0:01:22]} 41. Kc3 {
[%emt 0:30:25]} Be8 {[%emt 0:30:01]} 42. Rd8 {[%emt 0:09:09]} Bc6 {[%emt 0:00:
00]} 43. Rf8+ {[%emt 0:00:00]} Ke6 {[%emt 0:00:00]} 44. Rc8 {[%emt 0:00:00]}
Bd7 {[%emt 0:00:00]} 45. Rg8 {[%emt 0:00:00]} Kf7 {[%emt 0:00:00]} 46. Rf8+ {
[%emt 0:00:00]} Ke6 {[%emt 0:00:00]} 47. f4 {[%emt 0:00:00]} exf4 {[%emt 0:00:
00]} 48. gxf4 {[%emt 0:00:00]} Bc6 {[%emt 0:00:00]} 49. Rd8 {[%emt 0:00:00]}
Bxe4 {[%emt 0:00:00]} 50. f5+ {[%emt 0:00:00]} Ke5 {[%emt 0:00:00]} 51. Bd6+ {
[%emt 0:00:00]} Kd5 {[%emt 0:00:00]} 52. Bf8+ {[%emt 0:00:00]} Ke5 {[%emt 0:00:
00]} 53. Bxg7 {[%emt 0:00:05]} Bf3 {[%emt 0:01:06]} 54. Rd4 {[%emt 0:01:29]} h5
{[%emt 0:00:02]} 55. g5 {[%emt 0:04:16]} Kxf5 {[%emt 0:01:14]} 56. gxf6 {
[%emt 0:02:51]} Ra7 {[%emt 0:00:17]} 57. Kb4 {[%emt 0:00:50]} Rb7 {[%emt 0:00:
09]} 58. Kc5 {[%emt 0:03:49]} Kg5 {[%emt 0:04:02]} 59. Bf8 {[%emt 0:08:00]} Rf7
{[%emt 0:04:10]} 60. Be7 {[%emt 0:00:07]} h4 {[%emt 0:00:14]} 61. Kxb5 {
[%emt 0:00:37]} h3 {[%emt 0:00:14]} 62. Rd2 {[%emt 0:00:10]} Bg2 {[%emt 0:00:
20]} 63. Kxc4 {[%emt 0:00:18]} Kg4 {[%emt 0:01:05]} 64. b4 {[%emt 0:03:40]} Kf5
{[%emt 0:00:17]} 65. Bd6 {[%emt 0:01:14]} Rxf6 {[%emt 0:00:21]} 66. Bh2 {
[%emt 0:05:28]} Rc6+ {[%emt 0:00:16]} 67. Kb5 {[%emt 0:00:54]} Rc1 {[%emt 0:00:
02]} 68. a4 {[%emt 0:00:29]} Rb1 {[%emt 0:01:58]} 69. Ka5 {[%emt 0:01:06]} Ke4
{[%emt 0:00:32]} 70. b5 {[%emt 0:00:34]} Ke3 {[%emt 0:00:29]} 71. Rd8 {[%emt 0:
01:24]} Rb2 {[%emt 0:00:30]} 72. Be5 {[%emt 0:01:19]} Ra2 {[%emt 0:00:05]} 73.
Rh8 {[%emt 0:02:46]} Ke4 {[%emt 0:00:01]} 74. Bc7 {[%emt 0:01:52]} Kf5 {
[%emt 0:00:14]} 75. Kb4 {[%emt 0:01:17]} Kg4 {[%emt 0:01:07]} 76. Rg8+ {
[%emt 0:01:21]} Kf3 {[%emt 0:00:38]} 77. Rg3+ {[%emt 0:00:49]} Kf2 {[%emt 0:00:
14]} 78. Rb3 {[%emt 0:00:27]} Ra1 {[%emt 0:00:37]} 79. a5 {[%emt 0:01:30]} Kg1
{[%emt 0:00:04]} 80. a6 {[%emt 0:00:33]} h2 {[%emt 0:00:03]} 81. Bxh2+ {
[%emt 0:00:13]} Kxh2 {[%emt 0:00:03]} 82. Rb2 {[%emt 0:01:03]} Kg3 {[%emt 0:00:
31]} 83. Kc5 {[%emt 0:00:48]} Be4 {[%emt 0:01:34]} 84. Kb6 {[%emt 0:00:34]} Ra4
{[%emt 0:00:33]} 85. Ka7 {[%emt 0:01:23]} Kf4 {[%emt 0:00:03]} 86. Rd2 {
[%emt 0:00:23]} Ke3 {[%emt 0:00:03]} 87. Rd6 {[%emt 0:00:30]} Bg2 {[%emt 0:00:
11]} 88. b6 {[%emt 0:00:29]} Kf4 {[%emt 0:02:19]} 89. b7 {[%emt 0:00:13]} Bxb7
{[%emt 0:00:21]} 90. Kxb7 {[%emt 0:00:05]} Ke5 {[%emt 0:00:07]} 91. Rb6 {
[%emt 0:00:31]} Kd5 {[%emt 0:00:28]} 92. a7 {[%emt 0:00:06]} Kc5 {[%emt 0:00:
03]} 93. Rb1 {[%emt 0:00:15]} 1-0

[Event "EICC 2021"]
[Site "Reykjavik"]
[Date "2021.09.05"]
[Round "11.19"]
[White "Saric, Ivan"]
[Black "Horvath, Dominik"]
[Result "1/2-1/2"]
[ECO "B32"]
[WhiteElo "2653"]
[BlackElo "2455"]
[Annotator "ChessBase"]
[PlyCount "88"]
[EventDate "2021.08.26"]
[EventType "swiss"]
[EventCountry "ISL"]
[Tiebreak "Cut1 Buchholz"]
[SourceTitle "playchess.com"]
[Source "ChessBase"]
[SourceQuality "1"]
[TimeControl "40/5400+30:1800+30"]

1. e4 {[%emt 0:00:01]} c5 {[%emt 0:00:17]} 2. Nf3 {[%emt 0:00:03]} Nc6 {
[%emt 0:00:07]} 3. d4 {[%emt 0:00:16]} cxd4 {[%emt 0:00:23]} 4. Nxd4 {[%emt 0:
00:05]} e5 {[%emt 0:00:10]} 5. Nb5 {[%emt 0:00:05]} d6 {[%emt 0:00:04]} 6. N1c3
{[%emt 0:00:04]} a6 {[%emt 0:00:05]} 7. Na3 {[%emt 0:00:02]} Be6 {[%emt 0:00:
06]} 8. Nc4 {[%emt 0:01:29]} Rb8 {[%emt 0:00:04]} 9. g3 {[%emt 0:13:12]} h5 {
[%emt 0:02:51]} 10. h4 {[%emt 0:03:09]} g6 {[%emt 0:11:57]} 11. Bg5 {[%emt 0:
12:01]} f6 {[%emt 0:00:40]} 12. Bd2 {[%emt 0:02:56]} Nge7 {[%emt 0:10:30]} 13.
Ne3 {[%emt 0:03:50]} d5 {[%emt 0:08:03]} 14. exd5 {[%emt 0:00:05]} Nxd5 {
[%emt 0:00:03]} 15. Bg2 {[%emt 0:00:39]} Nxc3 {[%emt 0:03:29]} 16. Bxc3 {
[%emt 0:00:10]} Qxd1+ {[%emt 0:07:49]} 17. Rxd1 {[%emt 0:00:04]} Bc5 {[%emt 0:
00:19]} 18. Nd5 {[%emt 0:01:32]} Kf7 {[%emt 0:05:45]} 19. Nc7 {[%emt 0:16:43]}
Bg4 {[%emt 0:01:43]} 20. Bd5+ {[%emt 0:00:33]} Ke7 {[%emt 0:08:21]} 21. f3 {
[%emt 0:00:48]} Rbc8 {[%emt 0:00:09]} 22. fxg4 {[%emt 0:03:02]} Rxc7 {[%emt 0:
00:21]} 23. g5 {[%emt 0:00:55]} Rf8 {[%emt 0:13:30]} 24. gxf6+ {[%emt 0:12:16]}
Rxf6 {[%emt 0:00:07]} 25. Rf1 {[%emt 0:04:42]} Rxf1+ {[%emt 0:00:29]} 26. Kxf1
{[%emt 0:00:02]} Rd7 {[%emt 0:00:07]} 27. Bf3 {[%emt 0:00:10]} Rxd1+ {[%emt 0:
03:47]} 28. Bxd1 {[%emt 0:00:03]} Bd4 {[%emt 0:00:05]} 29. Bxd4 {[%emt 0:14:18]
} exd4 {[%emt 0:00:21]} 30. Bf3 {[%emt 0:01:02]} Kf6 {[%emt 0:01:03]} 31. Be4 {
[%emt 0:01:41]} g5 {[%emt 0:07:56]} 32. Ke2 {[%emt 0:00:14]} Ke5 {[%emt 0:03:
22]} 33. Bg6 {[%emt 0:00:15]} Ne7 {[%emt 0:01:41]} 34. Bxh5 {[%emt 0:08:46]}
Nf5 {[%emt 0:00:07]} 35. Bf3 {[%emt 0:00:37]} Nxg3+ {[%emt 0:00:06]} 36. Kd3 {
[%emt 0:00:41]} gxh4 {[%emt 0:00:07]} 37. Bxb7 {[%emt 0:00:03]} h3 {[%emt 0:01:
05]} 38. b4 {[%emt 0:00:09]} h2 {[%emt 0:02:39]} 39. a4 {[%emt 0:00:26]} h1=Q {
[%emt 0:00:16]} 40. Bxh1 {[%emt 0:00:04]} Nxh1 {[%emt 0:00:03]} 41. Kc4 {
[%emt 0:30:54]} Ng3 {[%emt 0:37:24]} 42. b5 {[%emt 0:00:00]} axb5+ {[%emt 0:00:
00]} 43. axb5 {[%emt 0:00:00]} Ne4 {[%emt 0:00:00]} 44. b6 {[%emt 0:00:00]} Kd6
{[%emt 0:00:00]} 1/2-1/2

[Event "EICC 2021"]
[Site "Reykjavik"]
[Date "2021.09.05"]
[Round "11.20"]
[White "Druska, Juraj"]
[Black "Bartel, Mateusz"]
[Result "1/2-1/2"]
[ECO "E04"]
[WhiteElo "2493"]
[BlackElo "2611"]
[Annotator "ChessBase"]
[PlyCount "76"]
[EventDate "2021.08.26"]
[EventType "swiss"]
[EventCountry "ISL"]
[Tiebreak "Cut1 Buchholz"]
[SourceTitle "playchess.com"]
[Source "ChessBase"]
[SourceQuality "1"]
[TimeControl "40/5400+30:1800+30"]

1. d4 {[%emt 0:00:07]} d5 {[%emt 0:00:29]} 2. c4 {[%emt 0:00:13]} e6 {[%emt 0:
00:06]} 3. Nf3 {[%emt 0:00:25]} Nf6 {[%emt 0:00:17]} 4. g3 {[%emt 0:00:20]}
dxc4 {[%emt 0:03:13]} 5. Bg2 {[%emt 0:00:06]} c6 {[%emt 0:00:03]} 6. Ne5 {
[%emt 0:00:42]} Bb4+ {[%emt 0:00:09]} 7. Bd2 {[%emt 0:00:06]} Be7 {[%emt 0:00:
40]} 8. e3 {[%emt 0:00:07]} b5 {[%emt 0:00:16]} 9. a4 {[%emt 0:00:58]} b4 {
[%emt 0:01:50]} 10. O-O {[%emt 0:01:02]} O-O {[%emt 0:03:20]} 11. Qc2 {[%emt 0:
00:05]} a5 {[%emt 0:06:32]} 12. Rd1 {[%emt 0:03:58]} Ba6 {[%emt 0:07:39]} 13.
Be1 {[%emt 0:07:52]} Ra7 {[%emt 0:05:35]} 14. Nd2 {[%emt 0:04:00]} c5 {[%emt 0:
01:50]} 15. dxc5 {[%emt 0:19:41]} Qc7 {[%emt 0:01:21]} 16. Ndxc4 {[%emt 0:12:
49]} Qxc5 {[%emt 0:00:09]} 17. b3 {[%emt 0:07:07]} Nbd7 {[%emt 0:11:52]} 18.
Qb2 {[%emt 0:17:03]} Bxc4 {[%emt 0:02:14]} 19. Nxc4 {[%emt 0:00:24]} Nd5 {
[%emt 0:00:04]} 20. Rac1 {[%emt 0:03:52]} Bf6 {[%emt 0:00:08]} 21. Qe2 {
[%emt 0:01:03]} Rc8 {[%emt 0:08:33]} 22. e4 {[%emt 0:03:35]} Nc3 {[%emt 0:01:
13]} 23. Bxc3 {[%emt 0:00:03]} Bxc3 {[%emt 0:02:20]} 24. Nd6 {[%emt 0:01:59]}
Rd8 {[%emt 0:00:29]} 25. Nb5 {[%emt 0:00:12]} Raa8 {[%emt 0:00:29]} 26. Nxc3 {
[%emt 0:02:18]} bxc3 {[%emt 0:00:14]} 27. Rd3 {[%emt 0:00:23]} Ne5 {[%emt 0:06:
56]} 28. Rdxc3 {[%emt 0:00:16]} Qd4 {[%emt 0:00:27]} 29. Qe3 {[%emt 0:03:08]}
Qxe3 {[%emt 0:00:29]} 30. Rxe3 {[%emt 0:00:01]} Rd2 {[%emt 0:00:09]} 31. Rec3 {
[%emt 0:02:17]} g5 {[%emt 0:00:09]} 32. R3c2 {[%emt 0:09:27]} Rad8 {[%emt 0:00:
32]} 33. Rxd2 {[%emt 0:00:21]} Rxd2 {[%emt 0:00:07]} 34. Rc5 {[%emt 0:00:08]}
Rd1+ {[%emt 0:02:32]} 35. Bf1 {[%emt 0:00:01]} Nf3+ {[%emt 0:00:32]} 36. Kg2 {
[%emt 0:00:00]} g4 {[%emt 0:00:10]} 37. Rxa5 {[%emt 0:01:00]} Kg7 {[%emt 0:08:
05]} 38. Rc5 {[%emt 0:00:10]} Ne1+ {[%emt 0:05:14]} 1/2-1/2

[Event "EICC 2021"]
[Site "Reykjavik"]
[Date "2021.09.05"]
[Round "11.21"]
[White "Kacharava, Nikolozi"]
[Black "Nguyen, Thai Dai Van"]
[Result "0-1"]
[ECO "C45"]
[WhiteElo "2453"]
[BlackElo "2588"]
[Annotator "ChessBase"]
[PlyCount "92"]
[EventDate "2021.08.26"]
[EventType "swiss"]
[EventCountry "ISL"]
[Tiebreak "Cut1 Buchholz"]
[SourceTitle "playchess.com"]
[Source "ChessBase"]
[SourceQuality "1"]
[TimeControl "40/5400+30:1800+30"]

1. e4 {[%emt 0:00:05]} e5 {[%emt 0:04:47]} 2. Nf3 {[%emt 0:00:18]} Nc6 {
[%emt 0:00:22]} 3. d4 {[%emt 0:00:44]} exd4 {[%emt 0:00:13]} 4. Nxd4 {[%emt 0:
00:14]} Nf6 {[%emt 0:00:22]} 5. Nxc6 {[%emt 0:00:41]} bxc6 {[%emt 0:00:06]} 6.
e5 {[%emt 0:00:20]} Qe7 {[%emt 0:00:07]} 7. Qe2 {[%emt 0:00:29]} Nd5 {[%emt 0:
00:09]} 8. h4 {[%emt 0:00:33]} f6 {[%emt 0:02:09]} 9. c4 {[%emt 0:00:22]} Ba6 {
[%emt 0:00:06]} 10. Rh3 {[%emt 0:00:35]} Nb6 {[%emt 0:02:34]} 11. Nd2 {[%emt 0:
00:36]} fxe5 {[%emt 0:00:41]} 12. Re3 {[%emt 0:00:29]} d6 {[%emt 0:00:22]} 13.
g3 {[%emt 0:00:31]} Qd7 {[%emt 0:06:40]} 14. Bg2 {[%emt 0:03:38]} Be7 {[%emt 0:
09:36]} 15. Ra3 {[%emt 0:01:53]} Bc8 {[%emt 0:08:03]} 16. c5 {[%emt 0:03:18]}
Nd5 {[%emt 0:01:38]} 17. Ne4 {[%emt 0:01:00]} O-O {[%emt 0:07:59]} 18. Bd2 {
[%emt 0:05:18]} Nf6 {[%emt 0:06:54]} 19. Ng5 {[%emt 0:08:02]} d5 {[%emt 0:04:
54]} 20. Rc1 {[%emt 0:06:13]} h6 {[%emt 0:03:38]} 21. Nf3 {[%emt 0:14:11]} Ng4
{[%emt 0:01:02]} 22. Bh3 {[%emt 0:17:41]} Qe8 {[%emt 0:02:46]} 23. Be3 {
[%emt 0:06:31]} a5 {[%emt 0:09:11]} 24. Nd2 {[%emt 0:02:54]} Nxe3 {[%emt 0:09:
05]} 25. Bxc8 {[%emt 0:00:09]} Qxc8 {[%emt 0:00:05]} 26. Rxe3 {[%emt 0:00:40]}
Bf6 {[%emt 0:00:18]} 27. f3 {[%emt 0:01:46]} e4 {[%emt 0:03:55]} 28. fxe4 {
[%emt 0:00:35]} Bxb2 {[%emt 0:00:12]} 29. Rc2 {[%emt 0:01:19]} Bd4 {[%emt 0:00:
04]} 30. Rd3 {[%emt 0:02:19]} Rf2 {[%emt 0:01:25]} 31. Qxf2 {[%emt 0:03:51]}
Bxf2+ {[%emt 0:00:06]} 32. Kxf2 {[%emt 0:00:05]} Qg4 {[%emt 0:02:30]} 33. Rf3 {
[%emt 0:03:13]} dxe4 {[%emt 0:00:46]} 34. Rc4 {[%emt 0:00:43]} Qe6 {[%emt 0:00:
07]} 35. Re3 {[%emt 0:01:54]} Rd8 {[%emt 0:00:34]} 36. Rc2 {[%emt 0:00:23]}
Qf5+ {[%emt 0:00:19]} 37. Ke1 {[%emt 0:00:51]} Rd3 {[%emt 0:00:46]} 38. Rc3 {
[%emt 0:00:54]} Rxe3+ {[%emt 0:00:55]} 39. Rxe3 {[%emt 0:00:05]} Qxc5 {[%emt 0:
00:08]} 40. Rxe4 {[%emt 0:00:14]} Qa3 {[%emt 0:00:08]} 41. Rc4 {[%emt 0:31:07]}
Qxa2 {[%emt 0:31:02]} 42. Rxc6 {[%emt 0:00:07]} a4 {[%emt 0:00:06]} 43. Rxc7 {
[%emt 0:00:07]} a3 {[%emt 0:00:18]} 44. Kd1 {[%emt 0:00:46]} Qa1+ {[%emt 0:00:
56]} 45. Rc1 {[%emt 0:00:08]} Qe5 {[%emt 0:00:05]} 46. Kc2 {[%emt 0:00:33]}
Qb2+ {[%emt 0:00:12]} 0-1